bitfinex/quotes_BTCUSD_20241101
["timestamp","ask_amount","ask_price","bid_price","bid_amount"]
[1730477719494,0.09693981,70150.0,70149.0,0.92908873]
[1730477719953,0.09693981,70150.0,70149.0,0.95208873]
[1730477720165,0.01810874,70150.0,70149.0,0.95208873]
[1730477720390,0.01815874,70150.0,70149.0,0.95208873]
[1730477721084,0.000809,70167.0,70150.0,0.285103]
[1730477721085,0.21412206,70153.0,70150.0,0.285103]
[1730477721348,0.000809,70167.0,70151.0,0.0507582]
[1730477721583,0.02620835,70152.0,70149.0,0.93316343]
[1730477721818,0.02620835,70152.0,70151.0,0.00957982]
[1730477721819,0.137547,70152.0,70151.0,0.00957982]
[1730477722049,0.142549,70151.0,70150.0,0.22371356]
[1730477722487,0.20742853,70151.0,70150.0,0.13845525]
[1730477722764,0.22118105,70151.0,70150.0,0.17075779]
[1730477722983,0.142551,70150.0,70149.0,0.5]
[1730477723223,0.24672267,70160.0,70149.0,0.63845525]
[1730477723454,0.1037732,70220.0,70149.0,0.63845525]
[1730477723455,0.21412206,70176.0,70152.0,0.13845525]
[1730477723671,0.1,70172.0,70152.0,0.13845525]
[1730477723886,0.02175229,70165.0,70155.0,0.14254]
[1730477724102,0.02175229,70165.0,70156.0,0.13845525]
[1730477724333,0.02175229,70165.0,70129.0,0.24672267]
[1730477724334,0.1,70163.0,70129.0,0.24672267]
[1730477724553,0.142549,70151.0,70150.0,0.21412206]
[1730477724763,0.07851917,70151.0,70150.0,0.35257731]
[1730477725194,0.06786776,70151.0,70150.0,0.13845525]
[1730477725430,0.0445947,70151.0,70150.0,0.13845525]
[1730477725692,0.07855707,70151.0,70150.0,0.14804675]
[1730477725927,0.2300471,70151.0,70150.0,0.0095915]
[1730477726168,0.2300471,70151.0,70144.0,0.21412206]
[1730477726169,0.142561,70145.0,70144.0,0.21412206]
[1730477726382,0.30903425,70151.0,70150.0,0.0095915]
[1730477726600,0.01305901,70145.0,70144.0,0.37398952]
[1730477726819,0.07856708,70145.0,70144.0,0.15986746]
[1730477727485,0.07856708,70145.0,70144.0,0.13845525]
[1730477727719,0.05767266,70145.0,70144.0,0.28101825]
[1730477727961,0.04700939,70145.0,70144.0,0.28101825]
[1730477728191,0.000821,70151.0,70144.0,0.13845525]
[1730477728434,0.000821,70151.0,70145.0,0.13845525]
[1730477728677,0.142559,70146.0,70145.0,0.13845525]
[1730477728899,0.24754367,70151.0,70145.0,0.13845525]
[1730477729145,0.05768149,70146.0,70135.0,0.21412206]
[1730477729376,0.142578,70137.0,70136.0,0.13845525]
[1730477729586,0.142596,70128.0,70127.0,0.001642]
[1730477729794,0.02612312,70128.0,70127.0,0.001642]
[1730477730301,0.18960904,70128.0,70127.0,0.001642]
[1730477730495,0.22115742,70128.0,70127.0,0.001642]
[1730477730706,0.142596,70128.0,70127.0,0.001642]
[1730477730921,0.22102242,70128.0,70127.0,0.14009725]
[1730477731582,0.20016679,70128.0,70127.0,0.001642]
[1730477731821,0.54134765,70128.0,70127.0,0.001642]
[1730477732032,0.59404744,70128.0,70127.0,0.001642]
[1730477732247,0.55026678,70128.0,70127.0,0.001642]
[1730477732467,0.50747281,70128.0,70127.0,0.001642]
[1730477732688,0.57192962,70128.0,70127.0,0.001642]
[1730477733206,0.60113765,70128.0,70127.0,0.001642]
[1730477733444,0.60113765,70128.0,70106.0,0.21412206]
[1730477733445,0.142639,70107.0,70106.0,0.21412206]
[1730477733677,0.75746167,70107.0,70106.0,0.21412206]
[1730477733909,0.38937767,70099.0,70067.0,0.21412206]
[1730477734367,0.51301729,70099.0,70067.0,0.21412206]
[1730477734595,0.142673,70090.0,70067.0,0.21412206]
[1730477734828,0.17649814,70090.0,70089.0,0.35257731]
[1730477735061,0.142692,70081.0,70067.0,0.21412206]
[1730477735307,0.142692,70081.0,70080.0,0.13845525]
[1730477735308,0.40242434,70081.0,70080.0,0.13845525]
[1730477735556,0.142728,70063.0,70062.0,0.21412206]
[1730477735788,0.17651344,70063.0,70062.0,0.35257731]
[1730477736019,0.21916422,70063.0,70062.0,0.21412206]
[1730477736249,0.14274,70057.0,70037.0,0.21412206]
[1730477736476,0.142734,70061.0,70056.0,0.14006925]
[1730477736711,0.14274,70057.0,70056.0,0.001614]
[1730477736937,0.19839956,70057.0,70056.0,0.02318761]
[1730477737160,0.19839956,70057.0,70056.0,0.001614]
[1730477737406,0.21992029,70057.0,70056.0,0.001614]
[1730477737634,0.19839956,70057.0,70056.0,0.001614]
[1730477737854,0.05565956,70057.0,70056.0,0.14006925]
[1730477738082,0.03378544,70057.0,70056.0,0.14006925]
[1730477738296,0.17652544,70057.0,70056.0,0.001614]
[1730477738522,0.19833362,70057.0,70056.0,0.001614]
[1730477738755,0.18544667,70057.0,70056.0,0.001614]
[1730477738984,0.14274,70057.0,70056.0,0.001614]
[1730477739915,0.15327227,70057.0,70056.0,0.001614]
[1730477740150,0.15327227,70057.0,70027.0,0.001614]
[1730477740151,0.142777,70039.0,70038.0,0.21412206]
[1730477740378,0.18517165,70039.0,70038.0,0.21412206]
[1730477740612,0.05526666,70039.0,70038.0,0.37398952]
[1730477740834,0.05526666,70039.0,70027.0,0.001614]
[1730477740835,0.142793,70032.0,70027.0,0.001614]
[1730477741057,0.03346723,70031.0,70030.0,0.21412206]
[1730477741265,0.03346723,70031.0,70030.0,0.13845525]
[1730477741933,0.18518858,70031.0,70030.0,0.13845525]
[1730477742174,0.18518858,70031.0,70027.0,0.001614]
[1730477742175,0.1428,70028.0,70027.0,0.001614]
[1730477742408,0.28559,70031.0,70027.0,0.001614]
[1730477742409,0.05513661,70031.0,70027.0,0.14006925]
[1730477742630,0.03337188,70030.0,70027.0,0.001614]
[1730477742859,0.1428,70028.0,70027.0,0.001614]
[1730477743090,0.17617188,70028.0,70027.0,0.001614]
[1730477743318,0.17617188,70028.0,70027.0,0.14006925]
[1730477743551,0.17617188,70028.0,70027.0,0.001614]
[1730477743807,0.1979089,70028.0,70027.0,0.001614]
[1730477744028,0.2979089,70028.0,70027.0,0.001614]
[1730477744288,0.2979089,70028.0,70020.0,0.001644]
[1730477744289,0.142814,70021.0,70020.0,0.001644]
[1730477744509,0.1979229,70021.0,70020.0,0.001644]
[1730477744749,0.142814,70021.0,70020.0,0.001644]
[1730477744979,0.38030946,70017.0,70001.0,0.21412206]
[1730477745194,0.142853,70002.0,70001.0,0.21412206]
[1730477745673,0.142853,70002.0,69985.0,0.001614]
[1730477745674,0.142855,70001.0,69985.0,0.001614]
[1730477745899,0.62316446,70001.0,69985.0,0.001614]
[1730477746130,0.76858672,70001.0,69985.0,0.001614]
[1730477746367,0.82512784,70001.0,70000.0,3.0001]
[1730477746585,0.87080322,70001.0,70000.0,2.0002]
[1730477746797,0.87080322,70001.0,70000.0,1.0003]
[1730477747014,0.87080322,70001.0,70000.0,0.9953]
[1730477747243,0.142883,69987.0,69985.0,0.001614]
[1730477747472,0.142885,69986.0,69985.0,0.001614]
[1730477747925,0.28886199,69986.0,69985.0,0.001614]
[1730477748134,0.2761284,69986.0,69985.0,0.001614]
[1730477749758,0.1,69983.0,69978.0,0.21412206]
[1730477749976,0.1,69983.0,69959.0,0.001614]
[1730477749977,0.01270676,69982.0,69959.0,0.001614]
[1730477750212,0.01270676,69981.0,69970.0,0.21412206]
[1730477750424,0.01270676,69980.0,69963.0,0.21412206]
[1730477750647,0.01270676,69979.0,69970.0,0.21412206]
[1730477750884,0.01270676,69979.0,69963.0,0.21412206]
[1730477750885,0.29851076,69978.0,69971.0,0.15986746]
[1730477751108,0.142904,69977.0,69971.0,0.15986746]
[1730477751335,0.01270676,69976.0,69971.0,0.15986746]
[1730477751566,0.21412206,69985.0,69971.0,0.13845525]
[1730477751795,0.285818,69975.0,69971.0,0.13845525]
[1730477752022,0.38030946,69979.0,69964.0,0.00285828]
[1730477752265,0.21412206,69977.0,69965.0,0.13845525]
[1730477752482,0.38030946,69979.0,69965.0,0.13845525]
[1730477752483,0.142923,69968.0,69965.0,0.13845525]
[1730477752922,0.142925,69967.0,69965.0,0.13845525]
[1730477753149,0.285839,69970.0,69965.0,0.13845525]
[1730477753394,0.38030946,69979.0,69965.0,0.13845525]
[1730477753395,0.21412206,69976.0,69965.0,0.13845525]
[1730477753605,0.28582,69974.0,69965.0,0.13845525]
[1730477754043,0.14292,69969.0,69965.0,0.13845525]
[1730477754249,0.21412206,69976.0,69965.0,0.13845525]
[1730477754250,0.142924,69967.0,69965.0,0.13845525]
[1730477754465,0.142916,69971.0,69965.0,0.13845525]
[1730477754643,0.285849,69967.0,69965.0,0.13845525]
[1730477754894,0.142926,69966.0,69965.0,0.13845525]
[1730477755880,0.14292,69970.0,69965.0,0.13845525]
[1730477756097,0.21412206,69974.0,69965.0,0.13845525]
[1730477756329,0.21412206,69974.0,69965.0,0.15230078]
[1730477756735,0.01271885,69973.0,69965.0,0.15230078]
[1730477756957,0.15563285,69973.0,69965.0,0.15230078]
[1730477757200,0.142921,69969.0,69965.0,0.13845525]
[1730477757395,0.142919,69970.0,69965.0,0.13845525]
[1730477757631,0.01273629,69969.0,69965.0,0.13845525]
[1730477757849,0.285801,69979.0,69965.0,0.13845525]
[1730477757850,0.21412206,69978.0,69965.0,0.13845525]
[1730477758026,0.142907,69976.0,69965.0,0.32381398]
[1730477758204,0.01273446,69975.0,69965.0,0.32381398]
[1730477758405,0.01273446,69974.0,69965.0,0.28138225]
[1730477758616,0.01273446,69973.0,69965.0,0.28138225]
[1730477758817,0.01273446,69972.0,69965.0,0.13845525]
[1730477759016,0.285836,69970.0,69965.0,0.13845525]
[1730477759242,0.01273446,69969.0,69965.0,0.13845525]
[1730477759576,0.21412206,69978.0,69959.0,0.001614]
[1730477759577,0.285849,69967.0,69959.0,0.001614]
[1730477759799,0.142933,69963.0,69960.0,0.13845525]
[1730477760070,0.01273446,69962.0,69960.0,0.13845525]
[1730477760276,0.01273446,69961.0,69960.0,0.13845525]
[1730477760987,0.01273446,69961.0,69960.0,0.29540018]
[1730477761168,0.01273446,69961.0,69960.0,0.32396018]
[1730477761405,0.03317688,69961.0,69960.0,0.28139325]
[1730477761583,0.01273446,69961.0,69960.0,0.28139325]
[1730477762466,0.03326655,69961.0,69960.0,0.28139325]
[1730477763156,0.22305839,69977.0,69964.0,0.38030946]
[1730477763413,0.21412206,69968.0,69965.0,0.10862166]
[1730477763665,0.21412206,69977.0,69959.0,0.001614]
[1730477763666,0.21412206,69967.0,69960.0,0.00546256]
[1730477763860,0.21412206,69977.0,69960.0,0.00546256]
[1730477763861,0.21412206,69977.0,69960.0,0.001646]
[1730477764107,0.285816,69975.0,69965.0,0.142926]
[1730477764321,0.00893674,69974.0,69966.0,0.0028582]
[1730477764540,0.16468603,69973.0,69966.0,0.0028582]
[1730477764760,0.02177303,69972.0,69967.0,0.18162077]
[1730477764984,0.02177303,69971.0,69967.0,0.18162077]
[1730477765195,0.00893674,69970.0,69967.0,0.18162077]
[1730477765433,0.01283629,69971.0,69967.0,0.18162077]
[1730477765434,0.02177303,69969.0,69967.0,0.32454377]
[1730477765664,0.285806,69978.0,69969.0,0.142918]
[1730477765665,0.23529699,69976.0,69969.0,0.142918]
[1730477765879,0.00893693,69975.0,69974.0,0.14291]
[1730477766095,0.00893693,69975.0,69974.0,0.13845525]
[1730477766096,0.02181897,69975.0,69974.0,0.13845525]
[1730477766309,0.02181897,69975.0,69974.0,0.28136525]
[1730477766531,0.03240248,69975.0,69974.0,0.39525108]
[1730477766772,0.02181897,69975.0,69974.0,0.39525108]
[1730477767241,0.02181897,69975.0,69974.0,0.28136525]
[1730477768156,0.16472697,69975.0,69974.0,0.13845525]
[1730477768392,0.16472697,69975.0,69961.0,0.21412206]
[1730477768393,0.04937666,69975.0,69961.0,0.21412206]
[1730477768626,0.05831261,69974.0,69969.0,0.21412206]
[1730477768867,0.00714869,69984.0,69962.0,0.13845525]
[1730477768868,0.00893595,69983.0,69973.0,0.142912]
[1730477769072,0.05841234,69982.0,69972.0,0.142914]
[1730477769303,0.02157008,69975.0,69973.0,0.0428758]
[1730477769521,0.02157008,69976.0,69975.0,0.142908]
[1730477769774,0.05406444,69976.0,69975.0,0.142908]
[1730477769992,0.01698621,69991.0,69976.0,0.023]
[1730477770217,0.2212696,70000.0,69976.0,0.023]
[1730477770218,0.21412206,69986.0,69985.0,0.13845525]
[1730477770448,0.00893341,69999.0,69992.0,0.142873]
[1730477770671,0.00893341,69999.0,69992.0,0.28132825]
[1730477770884,0.21412206,70000.0,69999.0,0.142859]
[1730477771086,0.21412206,70000.0,69999.0,0.28131425]
[1730477771367,0.000823,70001.0,69999.0,0.28131425]
[1730477771368,0.000823,70001.0,70000.0,0.142857]
[1730477771604,0.000823,70001.0,70000.0,0.39515988]
[1730477771823,0.000823,70001.0,70000.0,0.13845525]
[1730477772055,0.143678,70001.0,70000.0,0.13845525]
[1730477772306,0.02677449,70001.0,70000.0,0.28131225]
[1730477772743,0.02677449,70001.0,70000.0,0.13845525]
[1730477772956,0.02677449,70001.0,70000.0,0.18087408]
[1730477773180,0.04756328,70001.0,70000.0,0.13845525]
[1730477773412,0.04756328,70001.0,70000.0,0.28131225]
[1730477773882,0.02161179,70001.0,70000.0,0.28131225]
[1730477774568,0.03054348,70001.0,70000.0,0.28131225]
[1730477775032,0.0435671,70001.0,70000.0,0.28131225]
[1730477775258,0.06061063,70001.0,70000.0,0.28131225]
[1730477775471,0.06061063,70001.0,70000.0,0.38958818]
[1730477775715,0.02166401,70001.0,70000.0,0.38958818]
[1730477775932,0.01420242,70029.0,70000.0,0.38958818]
[1730477775933,0.00714525,70018.0,70015.0,0.142826]
[1730477776157,0.21412206,70027.0,70015.0,0.142826]
[1730477776158,0.00714525,70025.0,70015.0,0.29556385]
[1730477776395,0.285609,70026.0,70015.0,0.29556385]
[1730477776630,0.00714525,70026.0,70025.0,0.142805]
[1730477776842,0.21412206,70027.0,70025.0,0.13845525]
[1730477777062,0.007144,70034.0,70033.0,0.142789]
[1730477777295,0.21412206,70037.0,70035.0,0.142784]
[1730477777504,0.007144,70040.0,70036.0,0.16336431]
[1730477777714,0.22832448,70045.0,70036.0,0.16336431]
[1730477777715,0.21412206,70045.0,70037.0,0.00285531]
[1730477777932,0.007144,70048.0,70038.0,0.13845525]
[1730477777933,0.00714266,70048.0,70038.0,0.13845525]
[1730477778170,0.00892833,70044.0,70040.0,0.285551]
[1730477778382,0.00892833,70043.0,70041.0,0.13845525]
[1730477778598,0.00714266,70048.0,70042.0,0.01670062]
[1730477778835,0.21412206,70046.0,70043.0,0.13845525]
[1730477779069,0.0089272,70047.0,70043.0,0.13845525]
[1730477779316,0.00714266,70048.0,70043.0,0.13845525]
[1730477779317,0.0089272,70046.0,70045.0,0.142765]
[1730477779548,0.0089272,70046.0,70045.0,0.28122025]
[1730477779795,0.0089272,70046.0,70045.0,0.39638903]
[1730477780041,0.00714266,70048.0,70045.0,0.25362403]
[1730477780252,0.00714266,70048.0,70047.0,0.142761]
[1730477780462,0.00714266,70048.0,70047.0,0.28121625]
[1730477780678,0.00714266,70048.0,70047.0,0.30421625]
[1730477780917,0.01416865,70057.0,70056.0,0.142742]
[1730477781165,0.21412206,70066.0,70065.0,0.142724]
[1730477781385,0.21412206,70066.0,70065.0,0.28117925]
[1730477781609,0.30696413,70082.0,70065.0,0.28117925]
[1730477781610,0.142699,70078.0,70065.0,0.13845525]
[1730477781806,0.142699,70078.0,70056.0,0.285483]
[1730477781807,0.142696,70079.0,70071.0,0.142712]
[1730477782082,0.285401,70077.0,70071.0,0.28116725]
[1730477782537,0.22304538,70079.0,70071.0,0.28116725]
[1730477782762,0.28538,70082.0,70071.0,0.28116725]
[1730477782763,0.00892332,70078.0,70071.0,0.28116725]
[1730477782981,0.00892332,70082.0,70071.0,0.49528931]
[1730477783197,0.21493106,70087.0,70086.0,0.142681]
[1730477783440,0.35761006,70087.0,70086.0,0.13845525]
[1730477783683,0.35761006,70087.0,70067.0,0.21412206]
[1730477783684,0.142691,70082.0,70067.0,0.21412206]
[1730477783919,0.000809,70087.0,70075.0,0.21412206]
[1730477784161,0.142685,70085.0,70076.0,0.16272101]
[1730477784369,0.000809,70087.0,70076.0,0.16272101]
[1730477784370,0.000809,70087.0,70080.0,0.285384]
[1730477784586,0.000809,70087.0,70086.0,0.142681]
[1730477784794,0.000809,70087.0,70086.0,0.28113625]
[1730477785243,0.000809,70087.0,70086.0,0.51825831]
[1730477785457,0.000809,70087.0,70086.0,0.44157428]
[1730477785683,0.000809,70087.0,70086.0,0.75569634]
[1730477785891,0.01000568,70101.0,70088.0,0.285355]
[1730477786112,0.21412206,70111.0,70110.0,0.142633]
[1730477786382,0.21412206,70111.0,70110.0,0.28108825]
[1730477786608,0.142621,70116.0,70110.0,0.26171745]
[1730477786836,0.22303961,70134.0,70116.0,0.14262]
[1730477787068,0.142602,70126.0,70116.0,0.28392721]
[1730477787288,0.142605,70124.0,70116.0,0.29106411]
[1730477787507,0.285187,70130.0,70116.0,0.29106411]
[1730477787508,0.285187,70130.0,70116.0,0.79106411]
[1730477787717,0.142609,70122.0,70116.0,0.79106411]
[1730477787956,0.14261,70121.0,70116.0,0.79106411]
[1730477788176,0.285217,70123.0,70116.0,0.64844411]
[1730477788390,0.285225,70121.0,70116.0,0.71328852]
[1730477788648,0.143427,70117.0,70116.0,0.64844411]
[1730477788893,0.43352368,70117.0,70116.0,0.50998886]
[1730477789115,0.43352368,70117.0,70116.0,0.00998886]
[1730477789116,0.92734345,70117.0,70116.0,0.00998886]
[1730477789329,0.93626278,70117.0,70116.0,0.00998886]
[1730477789539,0.142645,70104.0,70103.0,0.21412206]
[1730477790031,0.142645,70104.0,70087.0,0.21412206]
[1730477790032,0.142661,70096.0,70087.0,0.21412206]
[1730477790296,0.285245,70115.0,70095.0,0.13845525]
[1730477790509,0.03339623,70114.0,70096.0,0.35543024]
[1730477790723,0.0128447,70113.0,70096.0,0.13845525]
[1730477790952,0.02055153,70115.0,70097.0,0.49944006]
[1730477790953,0.285261,70111.0,70097.0,0.49944006]
[1730477791194,0.03339623,70110.0,70109.0,0.35675706]
[1730477791428,0.0128447,70110.0,70109.0,0.17831071]
[1730477791643,0.000809,70117.0,70109.0,0.03852786]
[1730477791876,0.01285076,70116.0,70109.0,0.03567571]
[1730477792088,0.01285076,70115.0,70114.0,0.142623]
[1730477792567,0.01285076,70115.0,70114.0,0.28107825]
[1730477792804,0.01285076,70115.0,70114.0,0.39121855]
[1730477793018,0.000809,70117.0,70116.0,0.16562]
[1730477793242,0.000809,70117.0,70116.0,0.30407525]
[1730477794171,0.000809,70117.0,70116.0,0.28107525]
[1730477794386,0.000809,70117.0,70116.0,0.40577221]
[1730477794601,0.000809,70117.0,70116.0,0.13845525]
[1730477795539,0.000809,70117.0,70100.0,0.38097673]
[1730477795540,0.000809,70117.0,70108.0,0.21412206]
[1730477795754,0.000809,70117.0,70116.0,0.21412206]
[1730477795989,0.01366756,70117.0,70095.0,0.21412206]
[1730477796217,0.01366756,70117.0,70106.0,0.21412206]
[1730477796218,0.142639,70107.0,70106.0,0.21412206]
[1730477796428,0.142639,70107.0,70106.0,0.13845525]
[1730477796858,0.000809,70117.0,70096.0,0.02196303]
[1730477797077,0.285311,70099.0,70097.0,0.13845525]
[1730477797287,0.03347493,70116.0,70104.0,0.21412206]
[1730477797504,0.142643,70105.0,70099.0,0.142655]
[1730477797752,0.285281,70107.0,70095.0,0.21412206]
[1730477797958,0.01287563,70106.0,70105.0,0.142643]
[1730477798179,0.285268,70110.0,70105.0,0.13845525]
[1730477798409,0.000809,70117.0,70105.0,0.13845525]
[1730477798410,0.142632,70111.0,70105.0,0.13845525]
[1730477798611,0.000809,70117.0,70105.0,0.13845525]
[1730477798612,0.142633,70110.0,70105.0,0.13845525]
[1730477798856,0.142633,70110.0,70106.0,0.13845525]
[1730477799154,0.285259,70112.0,70106.0,0.13845525]
[1730477799395,0.142635,70109.0,70106.0,0.13845525]
[1730477799839,0.285261,70111.0,70106.0,0.13845525]
[1730477799840,0.142639,70107.0,70106.0,0.13845525]
[1730477800075,0.142635,70109.0,70106.0,0.13845525]
[1730477800286,0.012913,70107.0,70106.0,0.13845525]
[1730477800492,0.012913,70107.0,70106.0,0.18099428]
[1730477801596,0.000809,70117.0,70106.0,0.18099428]
[1730477801597,0.000809,70117.0,70107.0,0.023]
[1730477801875,0.000809,70117.0,70116.0,0.28107525]
[1730477803010,0.000809,70117.0,70116.0,0.30407525]
[1730477803719,0.000809,70117.0,70116.0,0.28107525]
[1730477804181,0.000809,70117.0,70116.0,0.13845525]
[1730477804419,0.02154642,70117.0,70116.0,0.13845525]
[1730477804656,0.02154642,70117.0,70096.0,0.285319]
[1730477804657,0.285241,70116.0,70096.0,0.285319]
[1730477804900,0.427913,70108.0,70107.0,0.21412206]
[1730477805125,0.427913,70108.0,70105.0,0.13845525]
[1730477805126,0.142639,70107.0,70106.0,0.21412206]
[1730477805349,0.142639,70107.0,70106.0,0.13845525]
[1730477805350,0.18527809,70107.0,70106.0,0.13845525]
[1730477805788,0.04263909,70107.0,70106.0,0.13845525]
[1730477806199,0.21662531,70107.0,70106.0,0.13845525]
[1730477806632,0.142643,70105.0,70033.0,0.001614]
[1730477806859,0.142643,70105.0,70096.0,0.21412206]
[1730477806860,0.23354966,70105.0,70096.0,0.21412206]
[1730477807311,0.17229825,70105.0,70096.0,0.21412206]
[1730477807576,0.142659,70097.0,70096.0,0.21412206]
[1730477808016,0.20626557,70097.0,70096.0,0.21412206]
[1730477808237,0.142668,70093.0,70088.0,0.00285322]
[1730477808470,0.06360657,70092.0,70089.0,0.17442128]
[1730477808681,0.07420017,70091.0,70089.0,0.17442128]
[1730477808913,0.07420017,70090.0,70089.0,0.17442128]
[1730477809403,0.07420017,70090.0,70089.0,0.13845525]
[1730477809404,0.21687317,70090.0,70089.0,0.13845525]
[1730477809626,0.23386377,70090.0,70089.0,0.13845525]
[1730477809851,0.09119077,70090.0,70089.0,0.13845525]
[1730477810067,0.09119077,70090.0,70089.0,0.28113025]
[1730477810305,0.09119077,70090.0,70089.0,0.30413025]
[1730477810306,0.07420017,70090.0,70089.0,0.30413025]
[1730477810553,0.07420017,70090.0,70089.0,0.44156448]
[1730477810765,0.06368249,70090.0,70089.0,0.13845525]
[1730477810978,0.07053182,70090.0,70089.0,0.13845525]
[1730477811202,0.23411087,70090.0,70089.0,0.13845525]
[1730477811406,0.23411087,70090.0,70089.0,0.14009725]
[1730477811612,0.09857494,70090.0,70089.0,0.14009725]
[1730477812098,0.09857494,70090.0,70089.0,0.31105037]
[1730477812305,0.09143787,70090.0,70089.0,0.7150271]
[1730477812533,0.09145569,70090.0,70089.0,0.7150271]
[1730477812759,0.09145569,70090.0,70089.0,0.33405037]
[1730477812979,0.09145569,70090.0,70089.0,0.14009725]
[1730477813201,0.09859274,70090.0,70089.0,0.28562553]
[1730477813432,0.09145569,70090.0,70089.0,0.28277225]
[1730477813688,0.10452691,70090.0,70089.0,0.42265877]
[1730477813922,0.285268,70110.0,70089.0,0.42265877]
[1730477813923,0.21494306,70105.0,70104.0,0.142645]
[1730477814129,0.21494306,70105.0,70104.0,0.13845525]
[1730477814130,0.23196635,70105.0,70104.0,0.13845525]
[1730477814401,0.01784429,70105.0,70104.0,0.13845525]
[1730477814605,0.01784865,70105.0,70104.0,0.29494578]
[1730477814820,0.01784865,70105.0,70104.0,0.15230078]
[1730477815046,0.01784865,70105.0,70104.0,0.29494578]
[1730477815297,0.03965851,70105.0,70104.0,0.29494578]
[1730477815520,0.000821,70105.0,70104.0,0.31794578]
[1730477815761,0.000809,70117.0,70104.0,0.31794578]
[1730477815762,0.02180986,70108.0,70107.0,0.142639]
[1730477815979,0.16444686,70108.0,70107.0,0.13845525]
[1730477816216,0.142637,70108.0,70107.0,0.13845525]
[1730477816950,0.285243,70116.0,70107.0,0.13845525]
[1730477816951,0.000809,70117.0,70107.0,0.15230078]
[1730477817181,0.000809,70117.0,70096.0,0.24620471]
[1730477817182,0.21412206,70116.0,70108.0,0.13845525]
[1730477817414,0.142645,70104.0,70096.0,0.14266]
[1730477817640,0.02181481,70102.0,70098.0,0.21412206]
[1730477817850,0.02181481,70102.0,70101.0,0.38885571]
[1730477818085,0.000809,70117.0,70114.0,0.142624]
[1730477818267,0.02181836,70106.0,70101.0,0.24620471]
[1730477818533,0.02181836,70106.0,70105.0,0.21412206]
[1730477818534,0.02181832,70106.0,70105.0,0.21412206]
[1730477818756,0.02181832,70106.0,70105.0,0.30409825]
[1730477818983,0.000809,70117.0,70105.0,0.16145525]
[1730477819209,0.000809,70117.0,70116.0,0.28107525]
[1730477820282,0.000809,70117.0,70116.0,0.51819731]
[1730477820514,0.0141928,70144.0,70117.0,0.4020896]
[1730477820744,0.21412206,70141.0,70140.0,0.26920471]
[1730477820983,0.21412206,70141.0,70140.0,0.69691871]
[1730477821255,0.0187651,70156.0,70150.0,0.142551]
[1730477821476,0.0187651,70156.0,70150.0,0.165551]
[1730477821706,0.0187651,70156.0,70150.0,0.90220482]
[1730477822369,0.0187651,70156.0,70150.0,0.90780723]
[1730477823475,0.0187651,70156.0,70150.0,0.94313444]
[1730477823723,0.000807,70176.0,70150.0,0.76525623]
[1730477823937,0.000807,70176.0,70169.0,0.142513]
[1730477823938,0.21412206,70170.0,70169.0,0.142513]
[1730477824222,0.000807,70176.0,70171.0,0.023]
[1730477824432,0.000807,70176.0,70175.0,0.1425]
[1730477824671,0.02167288,70176.0,70175.0,0.14534969]
[1730477824887,0.02167288,70176.0,70175.0,0.23703717]
[1730477825101,9e-05,70191.0,70190.0,0.37895641]
[1730477825324,0.06242692,70219.0,70190.0,0.37895641]
[1730477825325,0.142423,70214.0,70207.0,0.142434]
[1730477825561,0.0208284,70213.0,70194.0,0.023]
[1730477825833,0.0208284,70213.0,70198.0,0.21412206]
[1730477825834,0.02603672,70209.0,70198.0,0.21412206]
[1730477826045,0.02603672,70208.0,70199.0,0.13845525]
[1730477826253,0.03660273,70207.0,70187.0,0.21412206]
[1730477826500,0.03660273,70207.0,70193.0,0.5]
[1730477826501,0.01301836,70206.0,70193.0,0.5]
[1730477826727,0.284888,70203.0,70190.0,0.284937]
[1730477826962,0.21412206,70219.0,70188.0,0.02141221]
[1730477826963,0.02603672,70202.0,70195.0,0.21412206]
[1730477827176,0.02603672,70201.0,70188.0,0.02141221]
[1730477827383,0.02599873,70200.0,70196.0,0.13845525]
[1730477827626,0.05937319,70214.0,70197.0,0.03525773]
[1730477827627,0.01298035,70199.0,70197.0,0.03525773]
[1730477827880,0.02163391,70216.0,70188.0,0.02141221]
[1730477827881,0.02163391,70218.0,70198.0,0.13845525]
[1730477828088,0.284799,70225.0,70209.0,0.142431]
[1730477828089,0.02163391,70220.0,70209.0,0.142431]
[1730477828310,0.08511447,70210.0,70209.0,0.28088625]
[1730477828520,0.0721518,70210.0,70209.0,0.38894978]
[1730477828727,0.0187651,70227.0,70226.0,0.142397]
[1730477828933,0.0187651,70227.0,70226.0,0.28085225]
[1730477828934,0.03173003,70227.0,70226.0,0.28085225]
[1730477829372,0.02163391,70256.0,70227.0,0.08504532]
[1730477829624,0.02588918,70255.0,70239.0,0.023]
[1730477829879,0.01288096,70259.0,70239.0,0.023]
[1730477830579,0.01288096,70259.0,70258.0,0.142332]
[1730477830817,0.01288096,70259.0,70254.0,0.13845525]
[1730477831030,0.01288096,70259.0,70258.0,0.642332]
[1730477831236,0.01288096,70259.0,70258.0,0.142332]
[1730477831473,0.01288096,70259.0,70258.0,0.13845525]
[1730477832645,0.01288096,70259.0,70258.0,0.28078725]
[1730477833068,0.15521096,70259.0,70258.0,0.13845525]
[1730477833288,0.15521096,70259.0,70237.0,0.21412206]
[1730477833289,0.01288096,70259.0,70252.0,0.21412206]
[1730477833501,0.01288096,70259.0,70240.0,0.21412206]
[1730477833502,0.01288096,70259.0,70253.0,0.21412206]
[1730477833714,0.01288096,70259.0,70253.0,0.35257731]
[1730477833946,0.01288096,70259.0,70255.0,0.13845525]
[1730477834176,0.01288096,70259.0,70256.0,0.21412206]
[1730477834412,0.01288096,70259.0,70257.0,0.13845525]
[1730477834623,0.142332,70258.0,70257.0,0.13845525]
[1730477834859,0.01288096,70259.0,70257.0,0.13845525]
[1730477835293,0.01288096,70259.0,70258.0,0.35930038]
[1730477835520,0.01288096,70259.0,70258.0,0.13845525]
[1730477835753,0.15521096,70259.0,70258.0,0.13845525]
[1730477836205,0.01288096,70259.0,70258.0,0.13845525]
[1730477836641,0.01288096,70259.0,70258.0,0.50875484]
[1730477836861,0.01288096,70259.0,70258.0,0.53175484]
[1730477837075,0.01288096,70259.0,70258.0,0.31763278]
[1730477837345,0.000807,70278.0,70277.0,0.142294]
[1730477837588,0.000807,70278.0,70277.0,0.13845525]
[1730477837589,0.143099,70278.0,70277.0,0.13845525]
[1730477837811,0.143099,70278.0,70258.0,0.01384553]
[1730477837812,0.000807,70278.0,70258.0,0.01384553]
[1730477838053,0.142318,70265.0,70264.0,0.21412206]
[1730477838307,0.0293442,70278.0,70264.0,0.35257731]
[1730477838308,0.000807,70278.0,70264.0,0.35257731]
[1730477838508,0.000807,70278.0,70268.0,0.13845525]
[1730477838738,0.000807,70278.0,70264.0,0.21412206]